fUST/lending_fUST_20250311
["ID","MTS","AMOUNT","RATE_DAILY","PERIOD"]
[355875934,1741670841175,-305.97355255,0.00035,31]
[355875938,1741670848081,-2694.02644745,0.00035,31]
[355875939,1741670848104,-1812.56287327,0.0004169,15]
[355875940,1741670848129,-314.26045203,0.000419,9]
[355875941,1741670848153,-167.61641573,0.00043708,120]
[355875942,1741670848177,-182.973018,0.00043808,2]
[355875943,1741670848200,-201.93027142,0.00044192,19]
[355875944,1741670849424,21410.23738332,0.00025,7]
[355875947,1741670878253,4065.0,0.00025,10]
[355875951,1741670922437,3000.0,0.00026,30]
[355875952,1741670923589,452.99999901,0.0002,120]
[355875955,1741670952102,-153696.83760943,0.00034,14]
[355875956,1741670952123,-169.41502415,0.00038,2]
[355875957,1741670952144,-150.0,0.0003959,2]
[355875958,1741670952165,-3631.3209569,0.0004,31]
[355875959,1741670952186,-207.30593883,0.0004,30]
[355875960,1741670956237,-45474.84011068,0.0004,30]
[355875961,1741670956259,-245.48,0.0004,30]
[355875962,1741670956281,-3946.45,0.0004,30]
[355875963,1741670980642,1200.0,0.000119,2]
[355875964,1741670980993,1200.0,0.000138,2]
[355875965,1741670981336,1200.0,0.000157,2]
[355875966,1741670981679,1200.0,0.000176,2]
[355875967,1741670982066,552.53523081,0.000195,2]
[355875968,1741670982087,647.46476919,0.000195,2]
[355875969,1741670982561,1200.0,0.000214,2]
[355875970,1741670983048,1200.0,0.000233,2]
[355875971,1741670983388,1200.0,0.000252,2]
[355875972,1741670983756,156.51609985,0.000271,2]
[355875973,1741670983778,1043.48390015,0.000271,2]
[355875974,1741670984160,1648.6957299,0.00029,2]
[355875976,1741671004494,500.0,0.00034,5]
[355875977,1741671004552,1000.0,0.00039479,5]
[355875978,1741671004942,500.0,0.00034,5]
[355875979,1741671004995,505.67950497,0.00039479,5]
[355875980,1741671005102,224.52057879,0.00034,5]
[355875981,1741671005128,281.41573974,0.00034,5]
[355876090,1741671037905,-3226.81388617,0.000439,2]
[355876091,1741671037916,-320.0,0.00044191,5]
[355876092,1741671037926,-1802.05798245,0.00044192,19]
[355876093,1741671037935,-160.0,0.00044581,3]
[355876094,1741671037945,-1246.24094675,0.000449,10]
[355876095,1741671037955,-1010.0,0.00045,20]
[355876096,1741671037965,-156.0,0.00045,120]
[355876097,1741671037974,-3000.0,0.00045,31]
[355876098,1741671037985,-1000.0,0.00045,120]
[355876099,1741671037995,-1000.0,0.00045,120]
[355876100,1741671038004,-303.59221218,0.00045,120]
[355876101,1741671038016,-696.40778782,0.00045,120]
[355876102,1741671038026,-1000.0,0.00045,120]
[355876103,1741671038035,-1000.0,0.00045,120]
[355876104,1741671038044,-1000.0,0.00045,120]
[355876106,1741671038053,-1000.0,0.00045,120]
[355876108,1741671038063,-1000.0,0.00045,120]
[355876111,1741671038073,-1000.0,0.00045,120]
[355876113,1741671038082,-1000.0,0.00045,120]
[355876115,1741671038093,-1000.0,0.00045,120]
[355876117,1741671038103,-160.0,0.00045856,4]
[355876119,1741671038113,-160.91084304,0.00045942,2]
[355876121,1741671038123,-500.0,0.00045986,120]
[355876123,1741671038133,-500.0,0.00045986,120]
[355876125,1741671038146,-567.23,0.00045986,120]
[355876127,1741671038156,-500.0,0.00045986,120]
[355876129,1741671038167,-671.1,0.00045987,10]
[355876131,1741671038178,-1047.8,0.00045987,10]
[355876132,1741671038189,-873.17,0.00045987,10]
[355876133,1741671038200,-422.75461394,0.00045995,2]
[355876134,1741671038210,-162.35441961,0.00045995,120]
[355876136,1741671038219,-500.0,0.00045995,2]
[355876138,1741671038229,-500.0,0.00045995,2]
[355876140,1741671038238,-7238.45,0.00045996,120]
[355876141,1741671038248,-500.0,0.00045996,120]
[355876142,1741671038257,-1569.0,0.00045996,120]
[355876143,1741671038267,-1378.14,0.00045996,7]
[355876144,1741671038276,-505.4777875,0.00045996,120]
[355876145,1741671038286,-845.2,0.00045996,120]
[355876146,1741671038295,-885.59,0.00045996,120]
[355876147,1741671038305,-16131.53,0.00045996,2]
[355876148,1741671038314,-500.0,0.00045996,2]
[355876149,1741671038324,-500.0,0.00045996,120]
[355876150,1741671038333,-500.0,0.00045996,120]
[355876151,1741671038342,-425.66544732,0.00045996,2]
[355876152,1741671038352,-617.21,0.00045996,2]
[355876153,1741671038362,-372.44583824,0.00045996,31]
[355876154,1741671038372,-236.56801267,0.00045996,120]
[355876155,1741671038382,-398.0,0.00045997,2]
[355876156,1741671038394,-75126.26620287,0.00045997,30]
[355876157,1741671038404,-151.0,0.00046,28]
[355876158,1741671038415,-245.48,0.00046,30]
[355876159,1741671038425,-3946.45,0.00046,30]
[355876160,1741671038435,-167.61641572,0.00046004,120]
[355876161,1741671038445,-151.0,0.00046015,2]
[355876162,1741671038666,-1000.0,0.00046015,2]
[355876163,1741671038676,-600.0,0.00046015,2]
[355876164,1741671038686,-500.0,0.00046015,2]
[355876165,1741671038696,-416.66666667,0.00046018,2]
[355876166,1741671038706,-4397.49271848,0.00046023,4]
[355876167,1741671038716,-787.31997543,0.00046023,4]
[355876168,1741671038726,-43974.9271848,0.00046032,4]
[355876169,1741671038735,-7873.1997543,0.00046032,4]
[355876170,1741671038745,-502.61447239,0.00046032,2]
[355876171,1741671038755,-17589.9708739,0.00046032,4]
[355876172,1741671038765,-3149.27990172,0.00046032,4]
[355876173,1741671038775,-21987.4635924,0.00046033,4]
[355876174,1741671038785,-3936.59987715,0.00046033,4]
[355876175,1741671038795,-500.0,0.00046041,120]
[355876176,1741671038804,-22250.56,0.00046041,120]
[355876177,1741671038814,-592.99,0.00046041,120]
[355876178,1741671038824,-1784.43,0.00046041,120]
[355876179,1741671038834,-500.0,0.00046041,21]
[355876180,1741671038844,-2403.08,0.00046041,120]
[355876181,1741671038853,-1045.13,0.00046041,120]
[355876182,1741671038863,-1839.17,0.00046041,120]
[355876183,1741671038873,-500.0,0.00046041,120]
[355876184,1741671038883,-523.00752105,0.00046041,120]
[355876185,1741671038892,-3487.62,0.00046041,120]
[355876186,1741671038903,-4582.13,0.00046041,120]
[355876187,1741671038916,-500.0,0.00046041,120]
[355876188,1741671038926,-500.0,0.00046041,120]
[355876189,1741671038936,-7871.43,0.00046041,120]
[355876190,1741671038946,-2636.81,0.00046041,120]
[355876191,1741671038956,-4079.66,0.00046041,120]
[355876192,1741671038966,-500.0,0.00046041,120]
[355876193,1741671038976,-834.37,0.00046041,120]
[355876194,1741671038987,-500.0,0.00046041,120]
[355876195,1741671038997,-1713.18,0.00046041,120]
[355876196,1741671039006,-500.0,0.00046041,120]
[355876197,1741671039015,-514.21,0.00046041,120]
[355876198,1741671039024,-500.0,0.00046041,120]
[355876199,1741671039034,-1611.7,0.00046041,120]
[355876200,1741671039043,-919.23,0.00046041,120]
[355876201,1741671039053,-564.03,0.00046041,30]
[355876202,1741671039063,-1236.69,0.00046041,120]
[355876203,1741671039072,-500.0,0.00046041,120]
[355876204,1741671039082,-7058.45,0.00046041,120]
[355876205,1741671039091,-5675.67,0.00046041,120]
[355876206,1741671039101,-784.36,0.00046041,120]
[355876207,1741671039111,-54717.64042985,0.00046042,47]
[355876208,1741671039120,-211363.42285428,0.00046042,36]
[355876209,1741671039129,-2000.0,0.00046042,120]
[355876210,1741671039139,-500.0,0.00046042,120]
[355876211,1741671039150,-512.30114862,0.00046042,120]
[355876212,1741671039160,-529.46720629,0.00046042,120]
[355876213,1741671039170,-500.0,0.00046042,120]
[355876214,1741671039179,-899.35,0.00046042,120]
[355876215,1741671039189,-500.0,0.00046042,120]
[355876216,1741671039199,-500.0,0.00046042,120]
[355876217,1741671039209,-500.0,0.00046042,120]
[355876218,1741671039219,-500.0,0.00046042,120]
[355876219,1741671039229,-565.94091834,0.00046042,120]
[355876220,1741671039239,-500.0,0.00046042,120]
[355876221,1741671039249,-523.16567522,0.00046042,120]
[355876222,1741671039258,-500.0,0.00046042,120]
[355876223,1741671039268,-500.0,0.00046042,120]
[355876224,1741671039278,-500.0,0.00046042,120]
[355876225,1741671039287,-500.0,0.00046042,120]
[355876226,1741671039297,-919.81,0.00046042,120]
[355876227,1741671039307,-500.0,0.00046042,120]
[355876228,1741671039316,-908.76,0.00046042,120]
[355876229,1741671039327,-500.0,0.00046042,120]
[355876230,1741671039337,-500.0,0.00046042,120]
[355876231,1741671039347,-500.0,0.00046042,120]
[355876232,1741671039357,-500.0,0.00046042,120]
[355876233,1741671039366,-500.0,0.00046042,120]
[355876234,1741671039376,-1000.0,0.00046042,5]
[355876235,1741671039385,-500.0,0.00046042,120]
[355876236,1741671039395,-500.0,0.00046042,120]
[355876237,1741671039404,-500.0,0.00046042,120]
[355876238,1741671039414,-500.0,0.00046042,120]
[355876239,1741671039424,-1113.59,0.00046042,120]
[355876240,1741671039434,-582.15,0.00046042,120]
[355876241,1741671039445,-524.10377472,0.00046042,120]
[355876242,1741671039454,-500.0,0.00046042,120]
[355876243,1741671039464,-500.0,0.00046042,120]
[355876244,1741671039475,-500.0,0.00046042,120]
[355876245,1741671039485,-868.05,0.00046042,120]
[355876246,1741671039495,-500.0,0.00046042,120]
[355876247,1741671039506,-500.0,0.00046042,120]
[355876248,1741671039517,-523.24191443,0.00046042,120]
[355876249,1741671039527,-517.9879967,0.00046042,120]
[355876251,1741671039538,-500.0,0.00046042,120]
[355876252,1741671039548,-500.0,0.00046042,120]
[355876253,1741671039557,-505.88,0.00046042,120]
[355876254,1741671039567,-890.8,0.00046042,120]
[355876255,1741671039578,-516.61,0.00046042,120]
[355876256,1741671039589,-500.0,0.00046042,120]
[355876257,1741671039599,-500.0,0.00046042,120]
[355876259,1741671039610,-500.0,0.00046042,120]
[355876260,1741671039621,-500.0,0.00046042,120]
[355876261,1741671039631,-597.54378112,0.00046042,120]
[355876263,1741671039641,-500.0,0.00046042,120]
[355876264,1741671039655,-500.0,0.00046042,120]
[355876265,1741671039666,-500.0,0.00046042,120]
[355876268,1741671039676,-500.0,0.00046042,120]
[355876270,1741671039687,-500.0,0.00046042,120]
[355876271,1741671039697,-500.0,0.00046042,120]
[355876272,1741671039708,-500.0,0.00046042,120]
[355876274,1741671039718,-500.0,0.00046042,120]
[355876275,1741671039728,-500.0,0.00046042,120]
[355876276,1741671039738,-500.0,0.00046042,120]
[355876277,1741671039748,-500.0,0.00046042,120]
[355876278,1741671039758,-500.0,0.00046042,120]
[355876279,1741671039768,-500.0,0.00046042,120]
[355876280,1741671039778,-500.0,0.00046042,120]
[355876282,1741671039788,-500.0,0.00046042,120]
[355876284,1741671039798,-500.0,0.00046042,120]
[355876286,1741671039809,-894.63,0.00046042,120]
[355876287,1741671039820,-500.0,0.00046042,120]
[355876288,1741671039831,-500.0,0.00046042,120]
[355876289,1741671039841,-544.52897697,0.00046042,120]
[355876291,1741671039853,-500.0,0.00046042,120]
[355876292,1741671039863,-500.0,0.00046042,120]
[355876293,1741671039873,-500.0,0.00046042,120]
[355876294,1741671039882,-500.0,0.00046042,120]
[355876295,1741671039892,-500.0,0.00046042,120]
[355876297,1741671039908,-500.0,0.00046042,120]
[355876298,1741671039918,-373.80255331,0.00046042,120]
[355876299,1741671039927,-629.88387154,0.00046042,120]
[355876300,1741671039937,-500.0,0.00046042,120]
[355876301,1741671039947,-500.0,0.00046042,120]
[355876302,1741671039957,-500.0,0.00046042,5]
[355876303,1741671039968,-508.84888212,0.00046042,120]
[355876304,1741671039980,-500.0,0.00046042,120]
[355876305,1741671039991,-500.0,0.00046042,120]
[355876306,1741671040001,-500.0,0.00046042,120]
[355876307,1741671040012,-746.0,0.00046042,120]
[355876308,1741671040023,-511.96507088,0.00046042,120]
[355876309,1741671040034,-500.0,0.00046042,120]
[355876310,1741671040045,-500.0,0.00046042,120]
[355876311,1741671040056,-500.0,0.00046042,120]
[355876313,1741671040067,-500.0,0.00046042,120]
[355876314,1741671040078,-500.0,0.00046042,120]
[355876316,1741671040089,-500.0,0.00046042,120]
[355876318,1741671040099,-500.0,0.00046042,120]
[355876320,1741671040110,-500.0,0.00046042,120]
[355876322,1741671040120,-500.0,0.00046042,120]
[355876324,1741671040130,-500.0,0.00046042,120]
[355876326,1741671040140,-500.0,0.00046042,120]
[355876328,1741671040151,-3743.28,0.00046042,120]
[355876330,1741671040161,-500.0,0.00046042,120]
[355876332,1741671040171,-500.0,0.00046042,120]
[355876334,1741671040181,-505.45,0.00046042,120]
[355876336,1741671040191,-500.0,0.00046042,120]
[355876338,1741671040205,-500.0,0.00046042,120]
[355876340,1741671040215,-500.0,0.00046042,120]
[355876342,1741671040224,-500.0,0.00046042,120]
[355876344,1741671040234,-500.0,0.00046042,120]
[355876346,1741671040244,-1078.5,0.00046042,120]
[355876348,1741671040253,-500.0,0.00046042,120]
[355876350,1741671040263,-515.84506515,0.00046042,120]
[355876352,1741671040273,-500.0,0.00046042,120]
[355876354,1741671040283,-500.0,0.00046042,120]
[355876356,1741671040292,-500.0,0.00046042,120]
[355876358,1741671040302,-500.0,0.00046042,120]
[355876360,1741671040311,-1068.87,0.00046042,120]
[355876362,1741671040321,-500.0,0.00046042,120]
[355876364,1741671040330,-1068.87,0.00046042,120]
[355876366,1741671040340,-1068.87,0.00046042,120]
[355876368,1741671040349,-1501.0,0.00046042,120]
[355876371,1741671040359,-500.0,0.00046042,120]
[355876373,1741671040368,-1068.87,0.00046042,120]
[355876375,1741671040377,-1068.87,0.00046042,120]
[355876377,1741671040387,-1068.87,0.00046042,120]
[355876379,1741671040396,-1068.87,0.00046042,120]
[355876381,1741671040405,-1068.87,0.00046042,120]
[355876383,1741671040415,-1068.87,0.00046042,120]
[355876386,1741671040424,-1068.87,0.00046042,120]
[355876388,1741671040434,-1068.87,0.00046042,120]
[355876390,1741671040443,-500.0,0.00046042,120]
[355876392,1741671040453,-7363.7,0.00046042,120]
[355876394,1741671040462,-500.0,0.00046042,120]
[355876396,1741671040472,-500.0,0.00046042,120]
[355876398,1741671040481,-500.0,0.00046042,120]
[355876400,1741671040491,-578.02,0.00046042,120]
[355876402,1741671040500,-500.0,0.00046042,120]
[355876404,1741671040509,-500.0,0.00046042,120]
[355876406,1741671040519,-500.0,0.00046042,120]
[355876408,1741671040528,-871.06,0.00046042,2]
[355876410,1741671040538,-500.0,0.00046042,120]
[355876412,1741671040547,-500.0,0.00046042,120]
[355876414,1741671040557,-500.0,0.00046042,120]
[355876416,1741671040566,-500.0,0.00046042,120]
[355876418,1741671040576,-500.0,0.00046042,120]
[355876420,1741671040585,-501.62113148,0.00046042,120]
[355876422,1741671040595,-874.26,0.00046042,120]
[355876424,1741671040605,-500.0,0.00046042,120]
[355876426,1741671040614,-500.0,0.00046042,120]
[355876428,1741671040624,-190050.6,0.00046042,7]
[355876430,1741671040633,-500.0,0.00046042,120]
[355876432,1741671040643,-500.0,0.00046042,120]
[355876434,1741671040653,-500.0,0.00046042,120]
[355876436,1741671040662,-500.0,0.00046042,120]
[355876438,1741671040671,-500.0,0.00046042,120]
[355876440,1741671040681,-500.0,0.00046042,120]
[355876442,1741671040691,-500.0,0.00046042,120]
[355876444,1741671040701,-500.0,0.00046042,120]
[355876446,1741671040711,-500.0,0.00046042,120]
[355876448,1741671040721,-1088.86,0.00046042,120]
[355876450,1741671040731,-500.0,0.00046042,120]
[355876452,1741671040742,-500.0,0.00046042,120]
[355876454,1741671040751,-500.0,0.00046042,120]
[355876456,1741671040761,-500.0,0.00046042,120]
[355876458,1741671040770,-500.0,0.00046042,120]
[355876460,1741671040780,-1705.27,0.00046042,120]
[355876462,1741671040790,-500.0,0.00046042,120]
[355876464,1741671040800,-500.0,0.00046042,120]
[355876466,1741671040809,-500.0,0.00046042,120]
[355876468,1741671040820,-500.0,0.00046042,120]
[355876470,1741671040830,-500.0,0.00046042,120]
[355876472,1741671040840,-500.0,0.00046042,120]
[355876474,1741671040850,-1143.53,0.00046042,120]
[355876476,1741671040859,-500.0,0.00046042,120]
[355876478,1741671040869,-1013.85,0.00046042,120]
[355876480,1741671040879,-500.0,0.00046042,120]
[355876482,1741671040888,-1940.74,0.00046042,120]
[355876484,1741671040898,-500.0,0.00046042,120]
[355876486,1741671040909,-518.00811632,0.00046042,120]
[355876488,1741671040920,-559.07,0.00046042,120]
[355876490,1741671040929,-500.0,0.00046042,120]
[355876492,1741671040939,-5871.79,0.00046042,60]
[355876494,1741671040950,-500.0,0.00046042,120]
[355876496,1741671040961,-6071.21,0.00046042,120]
[355876498,1741671040970,-1799.41,0.00046042,120]
[355876500,1741671040980,-500.0,0.00046042,120]
[355876502,1741671040991,-1087.16,0.00046042,120]
[355876504,1741671041002,-850.19,0.00046042,120]
[355876506,1741671041011,-500.0,0.00046042,120]
[355876508,1741671041021,-850.19,0.00046042,120]
[355876510,1741671041031,-850.19,0.00046042,120]
[355876512,1741671041040,-850.19,0.00046042,120]
[355876514,1741671041050,-850.19,0.00046042,120]
[355876516,1741671041060,-850.19,0.00046042,120]
[355876537,1741671041240,-850.19,0.00046042,120]
[355876539,1741671041250,-850.19,0.00046042,120]
[355876541,1741671041260,-850.19,0.00046042,120]
[355876543,1741671041270,-850.19,0.00046042,120]
[355876545,1741671041279,-850.19,0.00046042,120]
[355876547,1741671041288,-931.28,0.00046042,120]
[355876549,1741671041298,-500.0,0.00046042,120]
[355876551,1741671041311,-500.0,0.00046042,120]
[355876553,1741671041320,-500.0,0.00046042,120]
[355876555,1741671041330,-500.0,0.00046042,120]
[355876557,1741671041340,-500.0,0.00046042,120]
[355876559,1741671041351,-160.0,0.00046042,7]
[355876561,1741671041361,-500.0,0.00046042,120]
[355876563,1741671041371,-500.0,0.00046042,120]
[355876565,1741671041381,-615.87696535,0.00046042,120]
[355876567,1741671041391,-623.32,0.00046042,120]
[355876569,1741671041405,-500.0,0.00046042,120]
[355876571,1741671041416,-543.05535058,0.00046042,120]
[355876573,1741671041432,-1200.3,0.00046042,120]
[355876575,1741671041443,-748.08,0.00046042,120]
[355876577,1741671041454,-507.65895553,0.00046042,120]
[355876579,1741671041466,-500.0,0.00046042,120]
[355876581,1741671041477,-500.0,0.00046042,120]
[355876583,1741671041488,-500.12,0.00046042,120]
[355876585,1741671041499,-346.92783254,0.00046042,120]
[355876587,1741671041511,-500.0,0.00046042,120]
[355876589,1741671041523,-1138.31,0.00046042,120]
[355876591,1741671041537,-4555.02,0.00046042,120]
[355876593,1741671041549,-1148.83,0.00046042,120]
[355876595,1741671041560,-500.0,0.00046042,120]
[355876597,1741671041571,-535.92741956,0.00046042,120]
[355876599,1741671041582,-500.0,0.00046042,120]
[355876601,1741671041594,-500.0,0.00046042,120]
[355876603,1741671041605,-500.0,0.00046042,30]
[355876605,1741671041616,-500.0,0.00046042,120]
[355876607,1741671041627,-1609.36,0.00046042,120]
[355876609,1741671041640,-939.72,0.00046042,120]
[355876611,1741671041659,-969.75,0.00046042,120]
[355876613,1741671041670,-500.0,0.00046042,120]
[355876615,1741671041682,-757.16,0.00046042,120]
[355876617,1741671041694,-500.0,0.00046042,120]
[355876619,1741671041705,-500.0,0.00046042,120]
[355876621,1741671041715,-24486.33,0.00046042,120]
[355876623,1741671041726,-183.88474207,0.00046042,120]
[355876625,1741671041736,-666.05,0.00046042,120]
[355876627,1741671041747,-500.0,0.00046042,120]
[355876629,1741671041757,-500.0,0.00046042,120]
[355876631,1741671041767,-505.86304942,0.00046042,120]
[355876633,1741671041777,-5897.4,0.00046042,120]
[355876635,1741671041787,-500.0,0.00046042,120]
[355876637,1741671041797,-500.0,0.00046042,120]
[355876639,1741671041807,-500.0,0.00046042,120]
[355876641,1741671041817,-500.0,0.00046042,120]
[355876643,1741671041827,-500.0,0.00046042,120]
[355876645,1741671041836,-500.0,0.00046042,120]
[355876647,1741671041846,-500.0,0.00046042,120]
[355876649,1741671041856,-1755.39,0.00046042,120]
[355876651,1741671041866,-853.36,0.00046042,120]
[355876653,1741671041876,-500.0,0.00046042,120]
[355876655,1741671041887,-500.0,0.00046042,120]
[355876657,1741671041902,-500.0,0.00046042,120]
[355876659,1741671041913,-500.0,0.00046042,120]
[355876661,1741671041923,-500.0,0.00046042,120]
[355876663,1741671041933,-500.0,0.00046042,120]
[355876665,1741671041945,-646.4,0.00046042,120]
[355876667,1741671041955,-941.02,0.00046042,120]
[355876669,1741671041965,-1497.87,0.00046042,120]
[355876671,1741671041975,-500.0,0.00046042,120]
[355876673,1741671041987,-502.48961174,0.00046042,120]
[355876675,1741671041997,-1491.39,0.00046042,120]
[355876677,1741671042008,-500.0,0.00046042,120]
[355876679,1741671042017,-500.0,0.00046042,120]
[355876681,1741671042027,-555.84742799,0.00046042,120]
[355876683,1741671042037,-512.99086167,0.00046042,120]
[355876685,1741671042047,-509.64445695,0.00046042,120]
[355876687,1741671042056,-896.08,0.00046042,120]
[355876689,1741671042066,-7116.89,0.00046042,120]
[355876691,1741671042075,-500.0,0.00046042,120]
[355876693,1741671042085,-500.0,0.00046042,120]
[355876695,1741671042095,-845.87,0.00046042,120]
[355876697,1741671042104,-500.0,0.00046042,120]
[355876699,1741671042114,-1129.2,0.00046042,120]
[355876700,1741671042123,-500.0,0.00046042,120]
[355876701,1741671042133,-500.0,0.00046042,120]
[355876702,1741671042143,-504.97180573,0.00046042,120]
[355876703,1741671042158,-1011.13,0.00046042,120]
[355876704,1741671042168,-500.0,0.00046042,120]
[355876705,1741671042179,-500.0,0.00046042,120]
[355876706,1741671042188,-1460.53,0.00046042,120]
[355876707,1741671042199,-500.0,0.00046042,120]
[355876708,1741671042208,-3479.02,0.00046042,120]
[355876709,1741671042218,-523.19163059,0.00046042,120]
[355876710,1741671042228,-500.0,0.00046042,120]
[355876711,1741671042237,-500.0,0.00046042,120]
[355876712,1741671042246,-500.0,0.00046042,120]
[355876713,1741671042256,-500.0,0.00046042,120]
[355876714,1741671042265,-500.0,0.00046042,120]
[355876715,1741671042274,-500.0,0.00046042,120]
[355876716,1741671042284,-3068.76,0.00046042,120]
[355876717,1741671042293,-500.0,0.00046042,120]
[355876718,1741671042303,-1263.27,0.00046042,120]
[355876719,1741671042312,-791.66,0.00046042,120]
[355876720,1741671042322,-500.0,0.00046042,120]
[355876721,1741671042331,-500.0,0.00046042,120]
[355876722,1741671042340,-500.0,0.00046042,120]
[355876723,1741671042350,-500.0,0.00046042,120]
[355876724,1741671042360,-510.25547445,0.00046042,120]
[355876725,1741671042369,-885.15,0.00046042,120]
[355876726,1741671042379,-500.0,0.00046042,120]
[355876727,1741671042389,-500.0,0.00046042,120]
[355876728,1741671042400,-500.0,0.00046042,120]
[355876729,1741671042409,-500.0,0.00046042,120]
[355876730,1741671042419,-500.0,0.00046042,120]
[355876731,1741671042428,-500.0,0.00046042,120]
[355876732,1741671042438,-832.02,0.00046042,120]
[355876733,1741671042448,-500.0,0.00046042,2]
[355876734,1741671042458,-500.0,0.00046042,120]
[355876735,1741671042468,-2980.32,0.00046042,120]
[355876736,1741671042477,-500.0,0.00046042,120]
[355876737,1741671042487,-500.0,0.00046042,120]
[355876739,1741671042496,-500.0,0.00046042,120]
[355876740,1741671042505,-439.26256697,0.00046042,120]
[355876741,1741671042515,-500.0,0.00046042,120]
[355876744,1741671042524,-500.0,0.00046042,2]
[355876747,1741671042534,-500.0,0.00046042,120]
[355876750,1741671042544,-508.87852592,0.00046042,120]
[355876753,1741671042553,-500.0,0.00046042,120]
[355876756,1741671042563,-627.35,0.00046042,120]
[355876758,1741671042572,-500.0,0.00046042,120]
[355876760,1741671042582,-500.0,0.00046042,120]
[355876762,1741671042591,-543.11,0.00046042,120]
[355876764,1741671042600,-847.37,0.00046042,120]
[355876766,1741671042610,-848.52,0.00046042,120]
[355876768,1741671042620,-167.216,0.00046043,75]
[355876770,1741671042630,-222000.0,0.00046043,2]
[355876772,1741671042639,-1013.145051,0.00046043,120]
[355876775,1741671042650,-1013.145051,0.00046043,120]
[355876777,1741671042659,-531.640718,0.00046043,110]
[355876779,1741671042669,-504.4287704,0.00046055,30]
[355876781,1741671042679,-155.3619476,0.00046055,30]
[355876783,1741671042688,-335.593249,0.00046055,30]
[355876785,1741671042698,-622.2,0.0004607,2]
[355876787,1741671042708,-583.36,0.000461,30]
[355876789,1741671042718,-645.2214,0.00046125,2]
[355876791,1741671042728,-500.0,0.0004614,120]
[355876793,1741671042738,-500.0,0.0004614,120]
[355876796,1741671042747,-500.0,0.0004614,120]
[355876799,1741671042757,-517.23842645,0.0004614,120]
[355876801,1741671042767,-500.0,0.0004614,120]
[355876803,1741671042776,-1000.0,0.0004614,90]
[355876805,1741671042786,-500.0,0.0004614,120]
[355876807,1741671042796,-1071.99,0.0004614,120]
[355876809,1741671042806,-500.0,0.0004614,120]
[355876811,1741671042815,-859.8,0.0004614,120]
[355876813,1741671042825,-500.0,0.0004614,120]
[355876815,1741671042835,-500.0,0.0004614,120]
[355876817,1741671042844,-903.23,0.0004614,120]
[355876819,1741671042854,-500.0,0.0004614,120]
[355876821,1741671042863,-500.0,0.0004614,120]
[355876823,1741671042872,-500.0,0.0004614,120]
[355876825,1741671042882,-500.0,0.0004614,120]
[355876827,1741671042891,-500.0,0.0004614,120]
[355876829,1741671042905,-517.53788846,0.0004614,120]
[355876831,1741671042915,-500.0,0.0004614,120]
[355876833,1741671042924,-697.55,0.0004614,120]
[355876835,1741671042935,-500.0,0.0004614,120]
[355876837,1741671042944,-627.06979101,0.0004614,120]
[355876839,1741671042954,-866.02,0.0004614,120]